{"text_format":"3","workbook":"xlsx","n_sheets":1,"sheets":["Sheet1"],"not_rendered":{"defined_names":2},"read":"whole","date_system":"1900"}

{"sheet":"Sheet1","index":0,"n_rows":133,"n_cols":15,"rows_kept":133,"merged":[[0,0,0,14],[1,0,1,14],[5,14,6,14],[7,14,8,14],[9,14,10,14],[11,14,12,14],[34,14,35,14],[36,14,37,14],[39,14,40,14],[41,14,42,14],[43,14,44,14],[45,14,46,14],[47,14,48,14],[49,14,50,14],[53,14,54,14],[55,14,56,14]]}
["附件1："]
["大理州2023年中央特岗教师招聘岗位表"]
["设岗县","招聘岗位","学科","学段","岗位简介","招聘人数","性别要求","学历\n要求","学位要求","专业需求","教师资格证要求","教师资格证专业要求","其它招考条件要求","是否受开考比例限制","备注"]
["漾濞县","专业技术人员","语文","小学","小学教育教学工作",1,"不限","普通招生计划本科及以上毕业生","学士学位及以上","小学教育、初等教育、汉语、汉语言、汉语言文学、汉语言文学教育、汉语言文字学、汉语语言文学、中国语言文学、语言学及应用语言学、中文、语文教育、文史教育、人文教育、课程与教学论、师范教育、学科教学、学科课程与教学论、文学阅读与文学教育","小学教师资格证及以上","语文",null,"否","龙潭乡中心校下属学校1人"]
["漾濞县","专业技术人员","数学","小学","小学教育教学工作",1,"不限","普通招生计划本科及以上毕业生","学士学位及以上","小学教育、初等教育、数学教育、基础数学、计算数学、数学、应用数学、数理基础科学、数学基础科学、数学与应用数学、课程与教学论、学科教学、学科课程与教学论、数理基地班","小学教师资格证及以上","数学",null,"否","苍山西镇中心校下属学校1人"]
["漾濞县","专业技术人员","体育与健康","小学","小学教育教学工作",3,"男","普通招生计划本科及以上毕业生","学士学位及以上","体育、社会体育、社会体育指导、社会体育指导与管理、体育教学、体育教育、体育管理、体育保健、体育保健与康复、体育教育训练学、体育人文社会学、体育生物科学、体育学、体育艺术表演、体育运动训练、运动训练、小学体育、小学体育教育、小学体育教学、竞技体育","小学教师资格证及以上","体育与健康",null,"否","苍山西镇中心校下属学校1人、漾江镇中心校下属学校1人、顺濞镇中心校下属学校1人、龙潭乡中心校下属学校1人，富恒乡中心校下属学校1人，鸡街乡中心校下属学校1人。统招统分，考生按综合成绩从高到低择优选岗。"]
["漾濞县","专业技术人员","体育与健康","小学","小学教育教学工作",3,"女","普通招生计划本科及以上毕业生","学士学位及以上","体育、社会体育、社会体育指导、社会体育指导与管理、体育教学、体育教育、体育管理、体育保健、体育保健与康复、体育教育训练学、体育人文社会学、体育生物科学、体育学、体育艺术表演、体育运动训练、运动训练、小学体育、小学体育教育、小学体育教学、竞技体育","小学教师资格证及以上","体育与健康",null,"否"]
["漾濞县","专业技术人员","音乐","小学","小学教育教学工作",2,"男","普通招生计划本科及以上毕业生","学士学位及以上","艺术教育、音乐教育、音乐舞蹈教育、流行音乐、演唱、音乐表演、音乐舞蹈教育、音乐、音乐学、音乐与舞蹈、 音乐与舞蹈学。","小学教师资格证及以上","音乐",null,"否","苍山西镇中心校下属学校1人、漾江镇中心校下属学校1人、太平乡中心校下属学校1人、瓦厂乡中心校下属学校1人。统招统分，考生按综合成绩从高到低择优选岗。"]
["漾濞县","专业技术人员","音乐","小学","小学教育教学工作",2,"女","普通招生计划本科及以上毕业生","学士学位及以上","艺术教育、音乐教育、音乐舞蹈教育、流行音乐、演唱、音乐表演、音乐舞蹈教育、音乐、音乐学、音乐与舞蹈、 音乐与舞蹈学。","小学教师资格证及以上","音乐",null,"否"]
["漾濞县","专业技术人员","美术","小学","小学教育教学工作",2,"男","普通招生计划本科及以上毕业生","学士学位及以上","美术、美术学、美术教育、美术绘画、绘画、绘画教育、艺术教育、艺术硕士专业（美术）、学科教学（美术）","小学教师资格证及以上","美术",null,"否","苍山西镇中心校下属学校1人、漾江镇中心校下属学校1人、富恒乡中心校下属学校1人、太平乡中心校下属学校1人。统招统分，考生按综合成绩从高到低择优选岗。"]
["漾濞县","专业技术人员","美术","小学","小学教育教学工作",2,"女","普通招生计划本科及以上毕业生","学士学位及以上","美术、美术学、美术教育、美术绘画、绘画、绘画教育、艺术教育、艺术硕士专业（美术）、学科教学（美术）","小学教师资格证及以上","美术",null,"否"]
["漾濞县","专业技术人员","信息技术","小学","小学教育教学工作",1,"男","普通招生计划本科及以上毕业生","学士学位及以上","教育技术、教育技术学、信息技术、多媒体制作、计算机多媒体技术、计算机技术应用、计算机技术与科学、计算机科学技术、计算机科学与技术、计算机网络、计算机网络教育、计算机应用、 计算机应用技术、 信息与计算机科学、现代信息技术教育、计算机信息与网络、计算机应用及网络教育技术。","小学教师资格证及以上","信息技术",null,"否","漾江镇中心校下属学校1人、苍山西镇中心校下属学校1人。统招统分，考生按综合成绩从高到低择优选岗。"]
["漾濞县","专业技术人员","信息技术","小学","小学教育教学工作",1,"女","普通招生计划本科及以上毕业生","学士学位及以上","教育技术、教育技术学、信息技术、多媒体制作、计算机多媒体技术、计算机技术应用、计算机技术与科学、计算机科学技术、计算机科学与技术、计算机网络、计算机网络教育、计算机应用、 计算机应用技术、 信息与计算机科学、现代信息技术教育、计算机信息与网络、计算机应用及网络教育技术。","小学教师资格证及以上","信息技术",null,"否"]
["祥云县","专业技术人员","音乐","小学","小学教育教学工作",8,"男","普通招生计划本科及以上毕业生","学士学位及以上","艺术教育、音乐教育、音乐舞蹈教育、流行音乐、现代流行音乐、演唱、音乐表演、音乐舞蹈教育、音乐、音乐学、音乐与舞蹈、 音乐与舞蹈学、课程与教学论（音乐）、学科教学（音乐）、学科课程与教学论（音乐）。","小学教师资格证及以上","音乐","30周岁及以下","否","1.云南驿镇、鹿鸣乡、下庄镇、普淜镇、刘厂镇、禾甸镇、米甸镇、东山乡村小各1人。\n２.统招统分，考生按综合成绩从高到低顺序选岗（若综合成绩并列，按面试成绩从高到低顺序选岗）。"]
["祥云县","专业技术人员","音乐","小学","小学教育教学工作",8,"女","普通招生计划本科及以上毕业生","学士学位及以上","艺术教育、音乐教育、音乐舞蹈教育、流行音乐、现代流行音乐、演唱、音乐表演、音乐舞蹈教育、音乐、音乐学、音乐与舞蹈、 音乐与舞蹈学、课程与教学论（音乐）、学科教学（音乐）、学科课程与教学论（音乐）。","小学教师资格证及以上","音乐","30周岁及以下","否","1.沙龙镇、鹿鸣乡、下庄镇、普淜镇、刘厂镇、禾甸镇、米甸镇、东山乡村小各1人。\n２.统招统分，考生按综合成绩从高到低顺序选岗（若综合成绩并列，按面试成绩从高到低顺序选岗）。"]
["祥云县","专业技术人员","体育","小学","小学教育教学工作",8,"男","普通招生计划本科及以上毕业生","学士学位及以上","体育、社会体育、社会体育指导、社会体育指导与管理、体育教学、体育教育、体育管理、体育保健、体育保健与康复、体育教育训练学、体育学、体育艺术表演、体育运动训练、运动训练、小学体育、小学体育教育、小学体育教学、竞技体育、课程与教学论（体育）、学科教学（体育）、学科课程与教学论（体育）。","小学教师资格证及以上","体育","30周岁及以下","否","1.云南驿镇、鹿鸣乡、下庄镇、普淜镇、刘厂镇、禾甸镇、米甸镇、东山乡村小各1人。\n２.统招统分，考生按综合成绩从高到低顺序选岗（若综合成绩并列，按面试成绩从高到低顺序选岗）。"]
["祥云县","专业技术人员","体育","小学","小学教育教学工作",8,"女","普通招生计划本科及以上毕业生","学士学位及以上","体育、社会体育、社会体育指导、社会体育指导与管理、体育教学、体育教育、体育管理、体育保健、体育保健与康复、体育教育训练学、体育学、体育艺术表演、体育运动训练、运动训练、小学体育、小学体育教育、小学体育教学、竞技体育、课程与教学论（体育）、学科教学（体育）、学科课程与教学论（体育）。","小学教师资格证及以上","体育","30周岁及以下","否","1.沙龙镇、鹿鸣乡、下庄镇、普淜镇、刘厂镇、禾甸镇、米甸镇、东山乡村小各1人。\n２.统招统分，考生按综合成绩从高到低顺序选岗（若综合成绩并列，按面试成绩从高到低顺序选岗）。"]
["祥云县","专业技术人员","美术","小学","小学教育教学工作",8,"男","普通招生计划本科及以上毕业生","学士学位及以上","美术、美术学、美术教育、美术绘画、绘画、绘画教育、艺术教育、艺术硕士专业（美术）、油画、中国画、中国画与书法、课程与教学论（美术）、学科教学（美术）、 学科课程与教学论（美术）。","小学教师资格证及以上","美术","30周岁及以下","否","1.云南驿镇、鹿鸣乡、下庄镇、普淜镇、刘厂镇、禾甸镇、米甸镇、东山乡村小各1人。\n２.统招统分，考生按综合成绩从高到低顺序选岗（若综合成绩并列，按面试成绩从高到低顺序选岗）。"]
["祥云县","专业技术人员","美术","小学","小学教育教学工作",8,"女","普通招生计划本科及以上毕业生","学士学位及以上","美术、美术学、美术教育、美术绘画、绘画、绘画教育、艺术教育、艺术硕士专业（美术）、油画、中国画、中国画与书法、课程与教学论（美术）、学科教学（美术）、 学科课程与教学论（美术）。","小学教师资格证及以上","美术","30周岁及以下","否","1.沙龙镇、鹿鸣乡、下庄镇、普淜镇、刘厂镇、禾甸镇、米甸镇、东山乡村小各1人。\n２.统招统分，考生按综合成绩从高到低顺序选岗（若综合成绩并列，按面试成绩从高到低顺序选岗）。"]
["祥云县","专业技术人员","语文","小学","心理健康教育教学工作",1,"男","普通招生计划本科及以上毕业生","学士学位及以上","教育学类：心理健康教育、心理咨询与心理健康教育。\n心理学类：教育心理学、心理学、心理咨询、心理咨询与教育、应用心理、应用心理学、基础心理学、发展与教育心理学。","小学教师资格证及以上","不限","30周岁及以下","否","1.岗位设置：云南驿镇村小。\n2.从事小学心理健康教育教师，笔试科目参加小学语文学科考试。"]
["祥云县","专业技术人员","语文","小学","心理健康教育教学工作",1,"女","普通招生计划本科及以上毕业生","学士学位及以上","教育学类：心理健康教育、心理咨询与心理健康教育。\n心理学类：教育心理学、心理学、心理咨询、心理咨询与教育、应用心理、应用心理学、基础心理学、发展与教育心理学。","小学教师资格证及以上","不限","30周岁及以下","否","1.岗位设置：禾甸镇村小。\n2.从事小学心理健康教育教师，笔试科目参加小学语文学科考试。"]
["宾川县","中学教师","语文","初中","中学语文教师",3,"不限","普通招生计划本科及以上毕业生","学士及以上","语言学及应用语言学、中国古典文献学、古典文献学、古典文学、中国古代文学、中国现当代文学、文学阅读与文学教育、语文教育、汉语、汉语言、汉语言文学、汉语言文学教育、汉语言文学与文化传播、汉语言文字学、汉语语言文学、文学阅读与文学教育、语言学、中国文学、中国语言文化、中国语言文学、中文、文史教育（语文方向）、人文教育（语文方向）、课程与教学论（语文方向）、师范教育、学科教学、学科教学（语文方向）、学科课程与教学论（语文方向）、汉语国际教育、综合文科、中文教育、华文教育、综合文科教育、文科、中国语言与文化、对外汉语、国际中文教育、比较文学与世界文学、应用语言学、师范教育（语文方向）。","初中教师资格证及以上","语文",null,"否","钟英乡中心学校1人，平川镇中心学校1人，拉乌乡中心学校1人。统招统分，以综合成绩择优选岗。"]
["宾川县","中学教师","数学","初中","中学数学教师",5,"不限","普通招生计划本科及以上毕业生","学士及以上","数学教育、基础数学、计算数学、数学、应用数学、数理基础科学、数学基础科学、数学与应用数学、课程与教学论、学科教学（数学方向）、学科课程与教学论（数学方向）、数理基地班、信息与计算科学、数据计算及应用、初等教育、理科、综合理科、综合理科教育、初等教育理科、概率论与数理统计、运筹学与控制论、学科教学、数学与信息科学、数理基础科学（数学方向）、科学教育（数学方向）、科学与技术教育（数学方向）、课程与教学论（数学方向）、师范教育（数学方向）。","初中教师资格证及以上","数学",null,"否","拉乌乡中心学校3人，平川镇中心学校1人，钟英乡中心学校1人。统招统分，以综合成绩择优选岗。"]
["宾川县","中学教师","英语","初中","中学英语教师",2,"不限","普通招生计划本科及以上毕业生","学士及以上","英语语言文学、英语教育、公共英语、教育英语、实用英语、外国语言文学、外国语言文学及应用语言学、外国语言学及应用语言学、一般英语应用、英汉笔译、英语、英语笔译、英语翻译、英语和高等教育、英语教学、英语教育与翻译、英语口译、英语文学、英语应用、语言学、英语语言文学、应用英语、课程与教学论、学科教学、学科教学（英语方向）、学科课程与教学论、对外英语教学、初等英语教育、商务英语、翻译、师范教育（英语方向）、课程与教学论（英语方向）、学科课程与教学论（英语方向）。","初中教师资格证及以上","英语",null,"否","拉乌乡中心学校1人，平川镇中心学校1人。统招统分，以综合成绩择优选岗。"]
["宾川县","中学教师","地理","初中","中学地理教师",1,"不限","普通招生计划本科及以上毕业生","学士及以上","地理、地理教育、地理学教育、课程与教学论、地理学、地理科学、学科教学、学科教学（地理方向）、地理信息系统、地理信息科学、自然地理、自然地理学、地图学与地理信息系统、人文地理学、自然地理与资源环境、人文地理与城乡规划、地球系统科学、地球信息科学与技术、课程与教学论、学科课程与教学论、科学教育（地理方向）、科学与技术教育（地理方向）、师范教育（地理方向）","初中教师资格证及以上","地理",null,"否","平川镇中心学校1人。"]
["宾川县","中学教师","生物","初中","中学生物教师",1,"不限","普通招生计划本科及以上毕业生","学士及以上","生物教育、生物教育学、生物学教育、生物科学、生物学、应用生物、应用生物技术教育、应用生物技术科学、应用生物科学、生物信息学、应用生物学教育、应用生物教育、课程与教学论（生物方向）、师范教育（生物方向）、学科教学（生物方向）、学科课程与教学论（生物方向）、生物基地班、学科教学、生命科学、生物技术、生物工程、合成生物学、生物实验技术、生物技术工程、生物技术及其应用、生物技术及应用、生物科学与生物技术。","初中教师资格证及以上","生物",null,"否","平川镇中心学校1人。"]
["宾川县","中学教师","化学","初中","中学化学教师",2,"不限","普通招生计划本科及以上毕业生","学士及以上","化学教育、分析化学、化学、无机化学、应用化学、有机化学、物理化学、化学物理、应用化学工程、化学分析与检验、化学工程、化学工程与工艺、化学工程与工业生物工程、卓越化学化工人才、精细化工、化工安全工程、化学生物学、化学测量学与技术、化学工程与技术、学科教学、学科教学（化学方向）、学科课程与教学论、课程与教学论、材料物理与化学、师范教育（化学方向）、科学教育（化学方向）、科学与技术教育（化学方向）、学科课程与教学论（化学方向）、课程与教学论（化学方向）。","初中教师资格证及以上","化学",null,"否","钟英乡中心学校1人、平川镇中心学校1人。统招统分，以综合成绩择优选岗。"]
["宾川县","中学教师","物理","初中","中学物理教师",1,"不限","普通招生计划本科及以上毕业生","学士及以上","理论物理、物理学、应用物理、应用物理学、物理教育、物理学教育、材料物理、声学、光学、无线电物理、凝聚态物理、学科教学（物理方向）、课程与教学论（物理方向）、师范教育（物理方向）、学科课程与教学论（物理方向）、数理基地班（物理方向）、数理基础科学（物理方向）、物理与教育技术学、物理现代化教育技术、应用电子技术教育、材料物理与化学、学科教学。","初中教师资格证及以上","物理",null,"否","平川镇中心学校1人。"]
["宾川县","小学教师","音乐","小学","小学音乐教师",1,"不限","普通招生计划本科及以上毕业生","学士及以上","艺术教育、音乐教育 、中小学音乐教育、中小学教育音乐、小学音乐教育、小学教育音乐、音乐表演、音乐学 、艺术学、音乐与舞蹈学、 舞蹈教育、舞蹈表演、音乐舞蹈教育、舞蹈学 、舞蹈、音乐与舞蹈、中国乐器演奏、键盘乐器演奏、演唱、音乐、艺师、艺师音乐、声乐、声乐表演、艺术管理、舞蹈编导、流行音乐、流行舞蹈、表演、师范教育（音乐方向）、课程与教学论、学科教学、学科课程与教学论、艺术教育（音乐方向）。","小学教师资格证及以上","音乐、艺术、舞蹈",null,"否","钟英乡中心学校1人。"]
["宾川县","小学教师","体育","小学","小学体育教师",3,"不限","普通招生计划本科及以上毕业生","学士及以上","体育教育、社会体育、社会体育指导、社会体育指导与管理、体育、体育保健、体育保健与康复、运动康复、体能训练、体育教学、体育教育训练学、体育人文社会学、体育生物科学、体育学、体育艺术表演、体育运动训练、中小学体育教育、中小学教育体育、体育师范、运动人体科学、民族传统体育、体师、民族传统体育学、体育足球、武术、运动训练、篮球、武术与民族传统体育、运动能力开发、休闲体育、运动人体科学、民族传统体育学、课程与教学论、学科教学、学科课程与教学论、师范教育（体育方向）。","小学教师资格证及以上","体育、体育与健康",null,"否","钟英乡中心学校1人，平川镇中心学校2人。统招统分，以综合成绩择优选岗。"]
["宾川县","小学教师","美术","小学","小学美术教师",1,"不限","普通招生计划本科及以上毕业生","学士及以上","美术、美术学、美术教育、美术绘画、绘画、雕塑、绘画教育、实验艺术、工艺美术、美术与书法、跨媒体艺术、艺术教育、艺术学、中师美术教育、美术师范、艺师美术、中小学美术教育、中小学教育美术、油画、漫画、版画、壁画、中国画、国画、中国画与书法、书法学、书法、艺术教育（美术方向）、美术与书法、课程与教学论、学科教学、学科课程与教学论、师范教育（美术方向）。","初中教师资格证及以上","美术、艺术",null,"否","钟英乡中心学校1人。"]
["弥渡县","专业技术人员","美术","小学",{"$f":"D32&C32&\"教育教学工作\"","v":"小学美术教育教学工作"},1,"不限","本科及以上","学士及以上学位","美术教育、版画、壁画、美术、美术绘画、美术学、油画、中国画、中国画与书法、绘画、绘画教育、书法、书法学、书法教育、艺术硕士专业（美术）、学科教学（美术）","小学教师资格证及以上","美术","无","否"]
["弥渡县","专业技术人员","数学","小学","小学数学教育教学工作",5,"男","本科及以上","学士及以上学位","小学教育、数学教育、基础数学、计算数学、数学、应用数学、数理基础科学、数学基础科学、数学与应用数学、学科数理基地班","小学教师资格证及以上","数学","无","否","统招统分，考生按综合成绩从高到低择优选岗"]
["弥渡县","专业技术人员","数学","小学","小学数学教育教学工作",5,"女","本科及以上","学士及以上学位","小学教育、数学教育、基础数学、计算数学、数学、应用数学、数理基础科学、数学基础科学、数学与应用数学、学科数理基地班","小学教师资格证及以上","数学","无","否","统招统分，考生按综合成绩从高到低择优选岗"]
["弥渡县","专业技术人员","体育","小学","小学体育教育教学工作",1,"男","本科及以上","学士及以上学位","体育教育、社会体育、社会体育指导、社会体育指导与管理、体育、体育管理、体育教学、体育教育、体育教育训练学、体育学、小学体育教学","小学教师资格证及以上","体育","无","否","统招统分，考生按综合成绩从高到低择优选岗"]
["弥渡县","专业技术人员","体育","小学","小学体育教育教学工作",1,"女","本科及以上","学士及以上学位","体育教育、社会体育、社会体育指导、社会体育指导与管理、体育、体育管理、体育教学、体育教育、体育教育训练学、体育学、小学体育教学","小学教师资格证及以上","体育","无","否"]
["弥渡县","专业技术人员","音乐","小学","小学音乐教育教学工作",1,"男","本科及以上","学士及以上学位","艺术教育、音乐教育、音乐表演、音乐学、音乐与舞蹈学、音乐舞蹈教育、舞蹈学、音乐与舞蹈、中国乐器演奏、键盘乐器演奏、演唱、音乐剧","小学教师资格证及以上","音乐","无","否","统招统分，考生按综合成绩从高到低择优选岗"]
["弥渡县","专业技术人员","音乐","小学","小学音乐教育教学工作",1,"女","本科及以上","学士及以上学位","艺术教育、音乐教育、音乐表演、音乐学、音乐与舞蹈学、音乐舞蹈教育、舞蹈学、音乐与舞蹈、中国乐器演奏、键盘乐器演奏、演唱、音乐剧","小学教师资格证及以上","音乐","无","否"]
["弥渡县","专业技术人员","英语","小学","小学英语教育教学工作",1,"不限","本科及以上","学士及以上学位","英语语言文学、英语教育、公共英语、教育英语、实用英语、外国语言文学、外国语言文学及应用语言学、一般英语应用、英汉笔译、英语、英语笔译、翻译、英语翻译、英语和高等教育、英语教学、英语教育与翻译、英语口译、英语文学、英语应用、英语语言文学、应用英语、学科课程与教学论","小学教师资格证及以上","英语","无","否"]
["弥渡县","专业技术人员","语文","小学","小学语文教育教学工作",5,"男","本科及以上","学士及以上学位","初等教育、小学教育、汉语、汉语言、汉语言文学、汉语言文学教育、汉语言文字学、汉语语言文学、中国语言文学、语言学及应用语言学、中文、语文教育、文史教育、人文教育、学科文学阅读与文学教育、对外汉语、汉语国际教育","小学教师资格证及以上","语文","无","否","统招统分，考生按综合成绩从高到低择优选岗"]
["弥渡县","专业技术人员","语文","小学","小学语文教育教学工作",5,"女","本科及以上","学士及以上学位","初等教育、小学教育、汉语、汉语言、汉语言文学、汉语言文学教育、汉语言文字学、汉语语言文学、中国语言文学、语言学及应用语言学、中文、语文教育、文史教育、人文教育、学科文学阅读与文学教育、对外汉语、汉语国际教育","小学教师资格证及以上","语文","无","否"]
["弥渡县","专业技术人员","政治","初中","初中政治教育教学工作",1,"男","本科及以上","学士及以上学位","马克思主义理论与思想政治教育、思想政治教育、政治、政治和思想品德教育、政治理论、政治学、政治学理论、政治学与行政学、史政教育、思想教育、学科政史教育、政治教育、政治历史教育、政治与思想品德教育","初中教师资格证及以上","政治","无","否","统招统分，考生按综合成绩从高到低择优选岗"]
["弥渡县","专业技术人员","政治","初中","初中政治教育教学工作",1,"女","本科及以上","学士及以上学位","马克思主义理论与思想政治教育、思想政治教育、政治、政治和思想品德教育、政治理论、政治学、政治学理论、政治学与行政学、史政教育、思想教育、学科政史教育、政治教育、政治历史教育、政治与思想品德教育","初中教师资格证及以上","政治","无","否"]
["弥渡县","专业技术人员","地理","初中","初中地理教育教学工作",1,"男","本科及以上","学士及以上学位","地理教育、学科地理、地理科学、地理学、地理学教育","初中教师资格证及以上","地理","无","否","统招统分，考生按综合成绩从高到低择优选岗"]
["弥渡县","专业技术人员","地理","初中","初中地理教育教学工作",1,"女","本科及以上","学士及以上学位","地理教育、学科地理、地理科学、地理学、地理学教育","初中教师资格证及以上","地理","无","否"]
["弥渡县","专业技术人员","历史","初中","初中历史教育教学工作",1,"男","本科及以上","学士及以上学位","课程与教学论、 历史教育、 人文教育、 师范教育、 史政教育、 文史教育、 学科教学、 政史教育、 政治历史教育、 历史、 历史地理学、 历史文献学、 历史学、 历史学教育、 史学理论及史学史、 世界历史、 世界史、 外国语言与外国历史、 中国古代史、 中国近代史、 中国近现代史、 中国近现代史基本问题研究、 中国史、 专门史","初中教师资格证及以上","历史","无","否","统招统分，考生按综合成绩从高到低择优选岗"]
["弥渡县","专业技术人员","历史","初中","初中历史教育教学工作",1,"女","本科及以上","学士及以上学位","课程与教学论、 历史教育、 人文教育、 师范教育、 史政教育、 文史教育、 学科教学、 政史教育、 政治历史教育、 历史、 历史地理学、 历史文献学、 历史学、 历史学教育、 史学理论及史学史、 世界历史、 世界史、 外国语言与外国历史、 中国古代史、 中国近代史、 中国近现代史、 中国近现代史基本问题研究、 中国史、 专门史","初中教师资格证及以上","历史","无","否"]
["弥渡县","专业技术人员","生物","初中","初中生物教育教学工作",2,"男","本科及以上","学士及以上学位","生物教育；生物教育学；生物学教育；生物科学；生物学；应用生物；应用生物技术教育；应用生物技术科学；应用生物科学；应用生物学教育；应用生物教育；课程与教学论（生物方向）；师范教育（生物方向）；学科教学（生物方向）；学科课程与教学论（生物方向）；生物基地班","初中教师资格证及以上","生物","无","否","统招统分，考生按综合成绩从高到低择优选岗"]
["弥渡县","专业技术人员","生物","初中","初中生物教育教学工作",2,"女","本科及以上","学士及以上学位","生物教育；生物教育学；生物学教育；生物科学；生物学；应用生物；应用生物技术教育；应用生物技术科学；应用生物科学；应用生物学教育；应用生物教育；课程与教学论（生物方向）；师范教育（生物方向）；学科教学（生物方向）；学科课程与教学论（生物方向）；生物基地班","初中教师资格证及以上","生物","无","否"]
["弥渡县","专业技术人员","数学","初中","初中数学教育教学工作",2,"男","本科及以上","学士及以上学位","数学教育、基础数学、计算数学、数学、应用数学、数理基础科学、数学基础科学、数学与应用数学、学科数理基地班","初中教师资格证及以上","数学","无","否","统招统分，考生按综合成绩从高到低择优选岗"]
["弥渡县","专业技术人员","数学","初中","初中数学教育教学工作",2,"女","本科及以上","学士及以上学位","数学教育、基础数学、计算数学、数学、应用数学、数理基础科学、数学基础科学、数学与应用数学、学科数理基地班","初中教师资格证及以上","数学","无","否"]
["弥渡县","专业技术人员","体育","初中","初中体育教育教学工作",1,"不限","本科及以上","学士及以上学位","体育教育、社会体育、社会体育指导、社会体育指导与管理、体育、体育管理、体育教学、体育教育、体育教育训练学、体育学","初中教师资格证及以上","体育","无","否"]
["弥渡县","专业技术人员","音乐","初中","初中音乐教育教学工作",1,"不限","本科及以上","学士及以上学位","课程与教学论、 学科教学、 学科课程与教学论、 艺术教育、 音乐教育、 音乐舞蹈教育、 流行音乐、 演唱、 音乐表演、 音乐舞蹈教育、 音乐学、 音乐与舞蹈、 音乐与舞蹈学","初中教师资格证及以上","音乐","无","否"]
["弥渡县","专业技术人员","英语","初中","初中英语教育教学工作",2,"男","本科及以上","学士及以上学位","英语语言文学、英语教育、公共英语、教育英语、实用英语、外国语言文学、外国语言文学及应用语言学、一般英语应用、英汉笔译、英语、英语笔译、翻译、英语翻译、英语和高等教育、英语教学、英语教育与翻译、英语口译、英语文学、英语应用、英语语言文学、应用英语、学科课程与教学论","初中教师资格证及以上","英语","无","否","统招统分，考生按综合成绩从高到低择优选岗"]
["弥渡县","专业技术人员","英语","初中","初中英语教育教学工作",2,"女","本科及以上","学士及以上学位","英语语言文学、英语教育、公共英语、教育英语、实用英语、外国语言文学、外国语言文学及应用语言学、一般英语应用、英汉笔译、英语、英语笔译、翻译、英语翻译、英语和高等教育、英语教学、英语教育与翻译、英语口译、英语文学、英语应用、英语语言文学、应用英语、学科课程与教学论","初中教师资格证及以上","英语","无","否"]
["弥渡县","专业技术人员","语文","初中","初中语文教育教学工作",2,"男","本科及以上","学士及以上学位","初等教育、汉语、汉语言、汉语言文学、汉语言文学教育、汉语言文字学、汉语语言文学、中国语言文学、语言学及应用语言学、中文、语文教育、文史教育、人文教育、学科文学阅读与文学教育、对外汉语、汉语国际教育","初中教师资格证及以上","语文","无","否","统招统分，考生按综合成绩从高到低择优选岗"]
["弥渡县","专业技术人员","语文","初中","初中语文教育教学工作",2,"女","本科及以上","学士及以上学位","初等教育、汉语、汉语言、汉语言文学、汉语言文学教育、汉语言文字学、汉语语言文学、中国语言文学、语言学及应用语言学、中文、语文教育、文史教育、人文教育、学科文学阅读与文学教育、对外汉语、汉语国际教育","初中教师资格证及以上","语文","无","否"]
["南涧县","专业技术人员","语文","小学","小学教育教学工作",8,"不限","普通招生计划本科及以上毕业生","学士学位及以上","不限","小学教师资格证及以上","语文或小学全科",null,"否","南涧县教育体育局下属乡（镇）小学；统招统分，考生按综合成绩从高到低择优选岗。"]
["南涧县","专业技术人员","数学","小学","小学教育教学工作",8,"不限","普通招生计划本科及以上毕业生","学士学位及以上","不限","小学教师资格证及以上","数学或小学全科",null,"否","南涧县教育体育局下属乡（镇）小学；统招统分，考生按综合成绩从高到低择优选岗。"]
["南涧县","专业技术人员","英语","小学","小学教育教学工作",2,"不限","普通招生计划本科及以上毕业生","学士学位及以上","英语语言文学、英语教育、公共英语、教育英语、实用英语、外国语言文学、外国语言文学及应用语言学、一般英语应用、英汉笔译、英语、英语笔译、英语翻译、英语和高等教育、英语教学、英语教育与翻译、英语口译、英语文学、英语应用、英语语言文学、应用英语、学科教学（英语方向）、学科课程与教学论、对外英语教学、初等英语教育、商务英语、师范教育（英语方向）、课程与教学论（英语方向）、学科课程与教学论（英语方向）","小学教师资格证及以上","英语或小学全科",null,"否","南涧县教育体育局下属乡（镇）小学；统招统分，考生按综合成绩从高到低择优选岗。"]
["南涧县","专业技术人员","音乐","小学","小学教育教学工作",2,"不限","普通招生计划本科及以上毕业生","学士学位及以上","艺术教育、音乐教育 、中小学音乐教育、中小学教育音乐、小学音乐教育、小学教育音乐、音乐表演、音乐学 、音乐与舞蹈学、 舞蹈教育、舞蹈表演、音乐舞蹈教育、舞蹈学 、音乐与舞蹈、中国乐器演奏、键盘乐器演奏、演唱、音乐、艺师、艺师音乐、声乐、声乐表演、师范教育（音乐方向）","小学教师资格证及以上","音乐或艺术",null,"否","南涧县教育体育局下属乡（镇）小学；统招统分，考生按综合成绩从高到低择优选岗。"]
["南涧县","专业技术人员","体育","小学","小学教育教学工作",3,"不限","普通招生计划本科及以上毕业生","学士学位及以上","体育教育、社会体育、社会体育指导、社会体育指导与管理、体育、小学体育、小学教育体育、小学体育教育、体育保健、体育保健与康复、体育教学、体育教育训练学、体育人文社会学、体育生物科学、体育学、体育艺术表演、体育运动训练、中小学体育教育、中小学教育体育、体育师范、运动人体科学、民族传统体育、体师、民族传统体育学、体育足球、武术、运动训练、篮球、武术与民族传统体育、、社会体育指导与管理、师范教育（体育方向）","小学教师资格证及以上","体育或体育与健康或小学全科",null,"否","南涧县教育体育局下属乡（镇）小学；统招统分，考生按综合成绩从高到低择优选岗。"]
["南涧县","专业技术人员","美术","小学","小学教育教学工作",2,"不限","普通招生计划本科及以上毕业生","学士学位及以上","美术、美术学、美术教育、美术绘画、绘画、绘画教育、艺术教育、中师美术教育、美术师范、艺师美术、中小学美术教育、中小学教育美术、小学美术教育、小学教育美术、油画、版画、壁画、中国画、国画、中国画与书法、书法学、书法、艺术教育（美术方向）、师范教育（美术方向）","小学教师资格证及以上","美术或小学全科",null,"否","南涧县教育体育局下属乡（镇）小学；统招统分，考生按综合成绩从高到低择优选岗。"]
["南涧县","专业技术人员","信息技术","小学","小学教育教学工作",2,"不限","普通招生计划本科及以上毕业生","学士学位及以上","信息技术、多媒体制作、计算机多媒体技术、计算机技术应用、计算机技术与科学、计算机科学技术、计算机科学与技术、计算机网络、计算机网络教育、计算机应用、计算机应用技术、信息与计算机科学","小学教师资格证及以上","信息技术或小学全科",null,"否","南涧县教育体育局下属乡（镇）小学；统招统分，考生按综合成绩从高到低择优选岗。"]
["南涧县","专业技术人员","语文","初中","初中教育教学工作",3,"不限","普通招生计划本科及以上毕业生","学士学位及以上","语言学及应用语言学、中国古典文献学、中国古代文学、中国现当代文学、文学阅读与文学教育、语文教育、汉语、汉语言、汉语言文学、汉语言文学教育、汉语言文学与文化传播、汉语言文字学、汉语语言文学、文学、文学阅读与文学教育、语言学、中国文学、中国语言文化、中国语言文学、中文、文史教育（语文方向）、人文教育（语文方向）、课程与教学论（语文方向）、师范教育（语文方向）、学科教学、学科教学（语文方向）、学科课程与教学论（语文方向）、中国语言与文化。","初中教师资格证及以上","语文",null,"否","南涧县教育体育局下属初级中学；统招统分，考生按综合成绩从高到低择优选岗。"]
["南涧县","专业技术人员","数学","初中","初中教育教学工作",3,"不限","普通招生计划本科及以上毕业生","学士学位及以上","数学教育、基础数学、计算数学、数学、应用数学、数理基础科学、数学基础科学、数学与应用数学、数理基地班、概率论与数理统计、数学与信息科学、学科教育（数学方向）、科学与技术教育（数学方向）、课程与教学论（数学方向）、学科教学（数学方向）、数理基础科学（数学方向）","初中教师资格证及以上","数学",null,"否","南涧县教育体育局下属初级中学；统招统分，考生按综合成绩从高到低择优选岗。"]
["南涧县","专业技术人员","英语","初中","初中教育教学工作",2,"不限","普通招生计划本科及以上毕业生","学士学位及以上","英语语言文学、英语教育、公共英语、教育英语、实用英语、外国语言文学、外国语言文学及应用语言学、一般英语应用、英汉笔译、英语、英语笔译、英语翻译、英语和高等教育、英语教学、英语教育与翻译、英语口译、英语文学、英语应用、英语语言文学、应用英语、课程与教学论、学科教学、学科教学（英语方向）、学科课程与教学论、对外英语教学、初等英语教育、商务英语、师范教育（英语方向）、课程与教学论（英语方向）、学科课程与教学论（英语方向）","初中教师资格证及以上","英语",null,"否","南涧县教育体育局下属初级中学；统招统分，考生按综合成绩从高到低择优选岗。"]
["南涧县","专业技术人员","政治","初中","初中教育教学工作",1,"不限","普通招生计划本科及以上毕业生","学士学位及以上","马克思主义理论与思想政治教育、思想政治教育、政治、政治和思想品德教育、政治理论、政治学、政治学理论、政治学与行政学、史政教育、思想教育、学科政史教育、政治教育、政治历史教育、政治与思想品德教育","初中教师资格证及以上","政治或思想政治或道德与法治",null,"否","南涧县教育体育局下属初级中学。"]
["南涧县","专业技术人员","地理","初中","初中教育教学工作",2,"不限","普通招生计划本科及以上毕业生","学士学位及以上","地理、地理教育、学科课程与教学论、地理学教育、课程与教学论、地理学、地理科学、学科教学、学科教学（地理方向）、地理信息系统、地理信息科学、自然地理、自然地理学、人文地理学、自然地理与资源环境、人文地理与城乡规划、科学教育（地理方向）、科学与技术教育（地理方向）、师范教育（地理方向）","初中教师资格证及以上","地理",null,"否","南涧县教育体育局下属初级中学；统招统分，考生按综合成绩从高到低择优选岗。"]
["南涧县","专业技术人员","生物","初中","初中教育教学工作",3,"不限","普通招生计划本科及以上毕业生","学士学位及以上","生物教育、生物教育学、生物学教育、生物技术、生物技术工程、生物技术及其应用、生物技术及应用、生物教育学、生物科学、生物科学与生物技术、生物信息技术、生物信息学、生物学、生物学教育、应用生物、应用生物技术教育、应用生物技术科学、应用生物学教育、生物基地班","初中教师资格证及以上","生物",null,"否","南涧县教育体育局下属初级中学；统招统分，考生按综合成绩从高到低择优选岗。"]
["南涧县","专业技术人员","音乐","初中","初中教育教学工作",2,"不限","普通招生计划本科及以上毕业生","学士学位及以上","艺术教育、音乐教育 、中小学音乐教育、中小学教育音乐、音乐表演、音乐学 、音乐与舞蹈学、 舞蹈教育、舞蹈表演、音乐舞蹈教育、舞蹈学 、音乐与舞蹈、中国乐器演奏、键盘乐器演奏、演唱、音乐、艺师、艺师音乐、声乐、声乐表演、师范教育（音乐方向）","初中教师资格证及以上","音乐",null,"否","南涧县教育体育局下属初级中学；统招统分，考生按综合成绩从高到低择优选岗。"]
["南涧县","专业技术人员","体育","初中","初中教育教学工作",3,"不限","普通招生计划本科及以上毕业生","学士学位及以上","体育教育、社会体育、社会体育指导、社会体育指导与管理、体育、小学体育、小学教育体育、小学体育教育、体育保健、体育保健与康复、体育教学、体育教育训练学、体育人文社会学、体育生物科学、体育学、体育艺术表演、体育运动训练、中小学体育教育、中小学教育体育、体育师范、运动人体科学、民族传统体育、体师、民族传统体育学、体育足球、武术、运动训练、篮球、武术与民族传统体育、社会体育指导与管理、师范教育（体育方向）","初中教师资格证及以上","体育或体育与健康",null,"否","南涧县教育体育局下属初级中学；统招统分，考生按综合成绩从高到低择优选岗。"]
["南涧县","专业技术人员","美术","初中","初中教育教学工作",2,"不限","普通招生计划本科及以上毕业生","学士学位及以上","美术、美术学、美术教育、美术绘画、绘画、绘画教育、艺术教育、中师美术教育、美术师范、艺师美术、中小学美术教育、中小学教育美术、小学美术教育、小学教育美术、油画、版画、壁画、中国画、国画、漫画、中国画与书法、书法学、书法、艺术教育（美术方向）、师范教育（美术方向）","初中教师资格证及以上","美术",null,"否","南涧县教育体育局下属初级中学；统招统分，考生按综合成绩从高到低择优选岗。"]
["南涧县","专业技术人员","信息技术","初中","初中教育教学工作",2,"不限","普通招生计划本科及以上毕业生","学士学位及以上","信息技术、多媒体制作、计算机多媒体技术、计算机技术应用、计算机技术与科学、计算机科学技术、计算机科学与技术、计算机网络、计算机网络教育、计算机应用、计算机应用技术、信息与计算机科学","初中教师资格证及以上","信息技术",null,"否","南涧县教育体育局下属初级中学；统招统分，考生按综合成绩从高到低择优选岗。"]
["巍山彝族回族自治县","专业技术人员","语文","初中","初中语文教育教学",1,"不限","普通高校本科及以上","学士学位及以上","国际中文教育、中国语言文学、华文教育、汉语言文学、汉语言、汉语国际教育、中国少数民族语言文学、古典文献学、应用语言学、中国语言与文化、语文教育、对外汉语、汉语、汉语言文学教育、汉语言文学与文化传播、汉语语言文学、中国语言文化、中文、中文应用、文学阅读与文学教育、汉语言文字学、少数民族语言与文学、少数民族语言文学教育、文学、语言学及应用语言学、人文教育、文学阅读与文学教育、中国学、古典文献、中文国际教育","初中教师资格证及以上","无","所学专业与申请服务岗位学科一致","否","统招统分，考生按综合成绩从高到低择优选岗"]
["巍山彝族回族自治县","专业技术人员","数学","初中","初中数学教育教学",1,"不限","普通高校本科及以上","学士学位及以上","数学、数学与应用数学、信息与计算科学、数理基础科学、数据计算及应用、数学教育、基础数学、计算数学、应用数学、数学与信息科学、概率论与数理统计、数学基础科学","初中教师资格证及以上","无","所学专业与申请服务岗位学科一致","否","统招统分，考生按综合成绩从高到低择优选岗"]
["巍山彝族回族自治县","专业技术人员","英语","初中","初中英语教育教学",2,"不限","普通高校本科及以上","学士学位及以上","英语、商务英语、英语教育、公共英语、国际经济与贸易英语、国际英语、经济贸易英语、科技英语、商贸英语、实用英语、世贸英语、英汉笔译、英语笔译、英语导游、英语翻译、英语教学、英语教育与翻译、英语口译、英语文学、英语应用、英语语言文学、应用英语、一般英语应用、教育英语、旅游英语、电子商务英语、英语和高等教育、生物医学英语","初中教师资格证及以上","无","所学专业与申请服务岗位学科一致","否","统招统分，考生按综合成绩从高到低择优选岗"]
["巍山彝族回族自治县","专业技术人员","物理","初中","初中物理教育教学",2,"不限","普通高校本科及以上","学士学位及以上","物理学、力学、应用物理学、声学、物理教育、物理现代教育技术、电子物理、工程力学、固体力学、固体物理、光学、光学工程、理论物理、理论与应用力学、流体力学、无线电物理、物理学教育、一般力学与力学基础、应用光学、应用物理、核物理、理论与应用力学","初中教师资格证及以上","无","所学专业与申请服务岗位学科一致","否","统招统分，考生按综合成绩从高到低择优选岗"]
["巍山彝族回族自治县","专业技术人员","化学","初中","初中化学教育教学",2,"不限","普通高校本科及以上","学士学位及以上","化学、化学工程与技术、应用化学、化学生物学、分子科学与工程、能源化学、化学测量学与技术、资源化学、化学教育、材料物流与化学、催化化学、电化学、放射化学、分析化学、化学分析与检验、化学物理、环境化学、无机化学、有机化学、化学信息","初中教师资格证及以上","无","所学专业与申请服务岗位学科一致","否","统招统分，考生按综合成绩从高到低择优选岗"]
["巍山彝族回族自治县","专业技术人员","体育","初中","初中体育教育教学",1,"不限","普通高校本科及以上","学士学位及以上","体育学、体育、体育教育、运动训练、社会体育指导与管理、武术与民族传统体育、运动人体科学、运动康复、竞技体育、社会体育、社会体育指导、体育教学、体育教育训练学、体育艺术表演、体育运动训练、民族传统体育","初中教师资格证及以上","无","所学专业与申请服务岗位学科一致","否","统招统分，考生按综合成绩从高到低择优选岗"]
["巍山彝族回族自治县","专业技术人员","生物","初中","初中生物教育教学",1,"不限","普通高校本科及以上","学士学位及以上","生物学、生态学、生物科学、生物技术、生物信息学、生物工程、生物教育、生物教育学、生物学教育、生物科学与生物技术、生物实验技术、生物物理学、生物信息技术、应用生物、应用生物技术教育、应用生物技术科学、应用生物学教育、动物学、植物学、生命科学、生物化学、生物技术及应用、生物技术及其应用、生物化学与分子生物学、生物资源科学、生物安全、生物系统工程、轻工生物技术","初中教师资格证及以上","无","所学专业与申请服务岗位学科一致","否","统招统分，考生按综合成绩从高到低择优选岗"]
["巍山彝族回族自治县","专业技术人员","地理","初中","初中地理教育教学",1,"不限","普通高校本科及以上","学士学位及以上","地理学、地质学、地理科学、自然地理与资源环境、人文地理与城乡规划、地理信息科学、地理、地理教育、地理学教育、地理信息科学与技术、资源环境与城乡规划管理、地理信息系统","初中教师资格证及以上","无","所学专业与申请服务岗位学科一致","否","统招统分，考生按综合成绩从高到低择优选岗"]
["巍山彝族回族自治县","专业技术人员","美术","初中","初中美术教育教学",1,"不限","普通高校本科及以上","学士学位及以上","美术与书法、美术学、绘画、雕塑、中国画、漫画、美术教育、美术、美术绘画、绘画教育、中国画与书法、工艺美术、装潢设计与工艺教育、版画、壁画、油画","初中教师资格证及以上","无","所学专业与申请服务岗位学科一致","否","统招统分，考生按综合成绩从高到低择优选岗"]
["巍山彝族回族自治县","专业技术人员","音乐","初中","初中音乐教育教学",1,"不限","普通高校本科及以上","学士学位及以上","音乐、音乐表演、音乐学、作曲与作曲技术理论、音乐教育、音乐舞蹈教育、音乐与舞蹈、音乐与舞蹈学","初中教师资格证及以上","无","所学专业与申请服务岗位学科一致","否","统招统分，考生按综合成绩从高到低择优选岗"]
["巍山彝族回族自治县","专业技术人员","历史","初中","初中历史教育教学",1,"不限","普通高校本科及以上","学士学位及以上","考古学、中国史、世界史、历史学、文物与博物馆学、科学史、历史教育、历史学教育、史政教育、历史、历史地理学、历史文献学、历史与社会、史学理论及史学史、世界历史、中国古代史、中国近代史、中国近现代史、外国语言与外国历史、博物馆学","初中教师资格证及以上","无","所学专业与申请服务岗位学科一致","否","统招统分，考生按综合成绩从高到低择优选岗"]
["巍山彝族回族自治县","专业技术人员","语文","小学","小学语文教育教学",5,"不限","普通高校本科及以上","学士学位及以上","国际中文教育、中国语言文学、华文教育、汉语言文学、汉语言、汉语国际教育、中国少数民族语言文学、古典文献学、应用语言学、中国语言与文化、语文教育、对外汉语、汉语、汉语言文学教育、汉语言文学与文化传播、汉语语言文学、中国语言文化、中文、中文应用、文学阅读与文学教育、汉语言文字学、少数民族语言与文学、少数民族语言文学教育、文学、小学教育、综合文科教育、文史教育、初等教育、基础教育、语言学及应用语言学、人文教育、师范教育、文学阅读与文学教育、中国学、古典文献、中文国际教育","小学教师资格证及以上","无","所学专业与申请服务岗位学科一致","否","统招统分，考生按综合成绩从高到低择优选岗"]
["巍山彝族回族自治县","专业技术人员","数学","小学","小学数学教育教学",9,"不限","普通高校本科及以上","学士学位及以上","数学、数学与应用数学、信息与计算科学、数理基础科学、数据计算及应用、数学教育、基础数学、计算数学、应用数学、数学与信息科学、概率论与数理统计、数学基础科学、小学教育、综合理科教育、初等教育、基础教育、师范教育","小学教师资格证及以上","无","所学专业与申请服务岗位学科一致","否","统招统分，考生按综合成绩从高到低择优选岗"]
["巍山彝族回族自治县","专业技术人员","英语","小学","小学英语教育教学",4,"不限","普通高校本科及以上","学士学位及以上","英语、商务英语、英语教育、公共英语、国际经济与贸易英语、国际英语、经济贸易英语、科技英语、商贸英语、实用英语、世贸英语、英汉笔译、英语笔译、英语导游、英语翻译、英语教学、英语教育与翻译、英语口译、英语文学、英语应用、英语语言文学、应用英语、一般英语应用、教育英语、旅游英语、电子商务英语、小学教育（英语方向）、英语和高等教育、生物医学英语","小学教师资格证及以上","无","所学专业与申请服务岗位学科一致","否","统招统分，考生按综合成绩从高到低择优选岗"]
["巍山彝族回族自治县","专业技术人员","音乐","小学","小学音乐教育教学",3,"不限","普通高校本科及以上","学士学位及以上","音乐、音乐表演、音乐学、作曲与作曲技术理论、音乐教育、音乐舞蹈教育、音乐与舞蹈、音乐与舞蹈学、小学教育（音乐方向）","小学教师资格证及以上","无","所学专业与申请服务岗位学科一致","否","统招统分，考生按综合成绩从高到低择优选岗"]
["永平县","专业技术人员","语文","小学","小学语文教师",5,"男","本科及以上","不限","初等教育、小学教育、汉语、汉语言、汉语言文学、汉语言文学教育、汉语言文字学、汉语语言文学、中国语言文学、语言学及应用语言学、中文、语文教育、文史教育、人文教育、课程与教学论、师范教育、学科教学、学科课程与教学论、文学阅读与文学教育","小学教师资格证及以上","语文","所学专业与申请服务岗位学科一致","否","统招统分，考生按综合成绩从高到低择优选岗"]
["永平县","专业技术人员","语文","小学","小学语文教师",5,"女","本科及以上","不限","初等教育、小学教育、汉语、汉语言、汉语言文学、汉语言文学教育、汉语言文字学、汉语语言文学、中国语言文学、语言学及应用语言学、中文、语文教育、文史教育、人文教育、课程与教学论、师范教育、学科教学、学科课程与教学论、文学阅读与文学教育","小学教师资格证及以上","语文","所学专业与申请服务岗位学科一致","否","统招统分，考生按综合成绩从高到低择优选岗"]
["永平县","专业技术人员","数学","小学","小学数学教师",5,"男","本科及以上","不限","小学教育、数学教育、基础数学、计算数学、数学、应用数学、数理基础科学、数学基础科学、数学与应用数学、课程与教学论、学科教学、学科课程与教学论、数理基地班","小学教师资格证及以上","数学","所学专业与申请服务岗位学科一致","否","统招统分，考生按综合成绩从高到低择优选岗"]
["永平县","专业技术人员","数学","小学","小学数学教师",5,"女","本科及以上","不限","小学教育、数学教育、基础数学、计算数学、数学、应用数学、数理基础科学、数学基础科学、数学与应用数学、课程与教学论、学科教学、学科课程与教学论、数理基地班","小学教师资格证及以上","数学","所学专业与申请服务岗位学科一致","否","统招统分，考生按综合成绩从高到低择优选岗"]
["永平县","专业技术人员","英语","小学","小学英语教师",2,"男","本科及以上","不限","英语语言文学、英语教育、公共英语、教育英语、实用英语、外国语言文学、外国语言文学及应用语言学、一般英语应用、英汉笔译、英语、英语笔译、翻译、英语翻译、英语和高等教育、英语教学、英语教育与翻译、英语口译、英语文学、英语应用、英语语言文学、应用英语、课程与教学论、学科教学、学科课程与教学论","小学教师资格证及以上","英语","所学专业与申请服务岗位学科一致","否","统招统分，考生按综合成绩从高到低择优选岗"]
["永平县","专业技术人员","英语","小学","小学英语教师",2,"女","本科及以上","不限","英语语言文学、英语教育、公共英语、教育英语、实用英语、外国语言文学、外国语言文学及应用语言学、一般英语应用、英汉笔译、英语、英语笔译、翻译、英语翻译、英语和高等教育、英语教学、英语教育与翻译、英语口译、英语文学、英语应用、英语语言文学、应用英语、课程与教学论、学科教学、学科课程与教学论","小学教师资格证及以上","英语","所学专业与申请服务岗位学科一致","否","统招统分，考生按综合成绩从高到低择优选岗"]
["永平县","专业技术人员","音乐","小学","小学音乐教师",1,"男","本科及以上","不限","艺术教育、 音乐教育 、 音乐表演、 音乐学 、 音乐与舞蹈学、音乐舞蹈教育、 舞蹈学 、 音乐与舞蹈","小学教师资格证及以上","音乐","所学专业与申请服务岗位学科一致","否","统招统分，考生按综合成绩从高到低择优选岗"]
["永平县","专业技术人员","音乐","小学","小学音乐教师",1,"女","本科及以上","不限","艺术教育、 音乐教育 、 音乐表演、 音乐学 、 音乐与舞蹈学、音乐舞蹈教育、 舞蹈学 、 音乐与舞蹈","小学教师资格证及以上","音乐","所学专业与申请服务岗位学科一致","否","统招统分，考生按综合成绩从高到低择优选岗"]
["永平县","专业技术人员","体育","小学","小学体育教师",1,"男","本科及以上","不限","体育教育、社会体育、社会体育指导、社会体育指导与管理、体育、体育管理、体育教学、体育教育、体育教育训练学、体育学、小学体育教学","小学教师资格证及以上","体育","所学专业与申请服务岗位学科一致","否","统招统分，考生按综合成绩从高到低择优选岗"]
["永平县","专业技术人员","体育","小学","小学体育教师",1,"女","本科及以上","不限","体育教育、社会体育、社会体育指导、社会体育指导与管理、体育、体育管理、体育教学、体育教育、体育教育训练学、体育学、小学体育教学","小学教师资格证及以上","体育","所学专业与申请服务岗位学科一致","否","统招统分，考生按综合成绩从高到低择优选岗"]
["永平县","专业技术人员","美术","小学","小学美术教师",1,"男","本科及以上","不限","美术、美术学、美术教育、美术绘画、绘画、绘画教育、艺术教育、艺术硕士专业（美术）、学科教学（美术）","小学教师资格证及以上","美术","所学专业与申请服务岗位学科一致","否","统招统分，考生按综合成绩从高到低择优选岗"]
["永平县","专业技术人员","美术","小学","小学美术教师",1,"女","本科及以上","不限","美术、美术学、美术教育、美术绘画、绘画、绘画教育、艺术教育、艺术硕士专业（美术）、学科教学（美术）","小学教师资格证及以上","美术","所学专业与申请服务岗位学科一致","否","统招统分，考生按综合成绩从高到低择优选岗"]
["云龙县","小学数学","数学","小学","小学数学教学",6,"男","大学本科及以上","学士学位及以上","不限","持小学及以上教师资格证","不限","大理州户籍或生源地","否","2023年9月，在缺岗村完小（教学点）考生按综合成绩从高到低择优选岗派遣。"]
["云龙县","小学数学","数学","小学","小学数学教学",6,"女","大学本科及以上","学士学位及以上","不限","持小学及以上教师资格证","不限","大理州户籍或生源地","否","2023年9月，在缺岗村完小（教学点）考生按综合成绩从高到低择优选岗派遣。"]
["云龙县","小学语文","语文","小学","小学语文教学",6,"男","大学本科及以上","学士学位及以上","不限","持小学及以上教师资格证","不限","大理州户籍或生源地","否","2023年9月，在缺岗村完小（教学点）考生按综合成绩从高到低择优选岗派遣。"]
["云龙县","小学语文","语文","小学","小学语文教学",6,"女","大学本科及以上","学士学位及以上","不限","持小学及以上教师资格证","不限","大理州户籍或生源地","否","2023年9月，在缺岗村完小（教学点）考生按综合成绩从高到低择优选岗派遣。"]
["云龙县","小学语文","语文","小学","小学心理健康教育",4,"不限","大学本科及以上","学士学位及以上","心理学、应用心理学、应用心理、课程与教学论、教育学、中国语言文学、小学教育、汉语言文学、汉语言、应用语言学、秘书学、汉语国际教育、学科教学（语文方向）。","持小学及以上教师资格证","不限","大理州户籍或生源地","否","本岗位招聘小学心理健康教育教师，笔试科目参加小学语文学科考试。2023年9月，在缺岗村完小（教学点）考生按综合成绩从高到低择优选岗派遣。"]
["洱源县","专业技术人员","语文","小学","从事小学语文教学工作",3,"男","本科及以上","学士学位","汉语国际教育、人文教育、语文教育、汉语、汉语言文学、汉语言文学教育、汉语言、汉语言文字学、汉语语言文学、文学阅读与文学教育、中文、应用语言学、对外汉语、中国语言文化、中国语言文学、汉语言文学与文化传播、中国学、中国语言与文化、人文科学实验班（汉语言文学方向）、中文教育、国际中文教育、学科教学（语文方向）、学科课程与教学论（语文方向）、课程与教学论（语文方向）、语言学及应用语言学、应用语言学、中国古典文献学、中国古代文学、中国现当代文学、文学阅读与文学教育、比较文学与世界文学、师范教育（语文方向）、小学教育、初等教育学、初等教育","小学教师资格证及以上","语文、小学全科","无","否","洱源县炼铁纸厂中心完小1人、洱源县乔后新坪中心完小1人、洱源县西山团结中心完小1人，按综合成绩由高到低进行选岗。"]
["洱源县","专业技术人员","语文","小学","从事小学语文教学工作",3,"女","本科及以上","学士学位","汉语国际教育、人文教育、语文教育、汉语、汉语言文学、汉语言文学教育、汉语言、汉语言文字学、汉语语言文学、文学阅读与文学教育、中文、应用语言学、对外汉语、中国语言文化、中国语言文学、汉语言文学与文化传播、中国学、中国语言与文化、人文科学实验班（汉语言文学方向）、中文教育、国际中文教育、学科教学（语文方向）、学科课程与教学论（语文方向）、课程与教学论（语文方向）、语言学及应用语言学、应用语言学、中国古典文献学、中国古代文学、中国现当代文学、文学阅读与文学教育、比较文学与世界文学、师范教育（语文方向）、小学教育、初等教育学、初等教育","小学教师资格证及以上","语文、小学全科","无","否","洱源县田心中心完小1人、洱源县西山立坪中心完小1人、洱源县西山建设中心完小1人，按综合成绩由高到低进行选岗。"]
["洱源县","专业技术人员","数学","小学","从事小学数学教学工作",2,"男","本科及以上","学士学位","数学教育、基础数学、计算数学、数学、数学基础科学、数学与信息科学、数学与应用数学、信息与计算科学、应用数学、科学教育（数学方向）、科学与技术教育（数学方向）、课程与教学论（数学方向）、师范教育（数学方向）、学科教学（数学方向）、学科课程与教学论（数学方向）、数理基础科学（数学方向）、数理基地班（数学方向）、综合理科教育（数学方向）、小学教育、初等教育学、初等教育","小学教师资格证及以上","数学、小学全科","无","否","洱源县炼铁纸厂中心完小1人、洱源县炼铁新庄中心完小1人，按综合成绩由高到低进行选岗。"]
["洱源县","专业技术人员","数学","小学","从事小学数学教学工作",2,"女","本科及以上","学士学位","数学教育、基础数学、计算数学、数学、数学基础科学、数学与信息科学、数学与应用数学、信息与计算科学、应用数学、科学教育（数学方向）、科学与技术教育（数学方向）、课程与教学论（数学方向）、师范教育（数学方向）、学科教学（数学方向）、学科课程与教学论（数学方向）、数理基础科学（数学方向）、数理基地班（数学方向）、综合理科教育（数学方向）、小学教育、初等教育学、初等教育","小学教师资格证及以上","数学、小学全科","无","否","洱源县炼铁江旁中心完小1人、洱源县西山胜利中心完小1人，按综合成绩由高到低进行选岗。"]
["洱源县","专业技术人员","体育","小学","从事小学体育教学工作",2,"男","本科及以上","学士学位","体育教育、 体育教育学、社会体育、 社会体育指导、社会体育指导与管理、 体育、体育管理、 体育教育训练学、体育学、 运动科学、 体育运动训练、 运动训练、体育与健康、小学体育教学、体育教学、师范教育（体育方向）、课程与教学论（体育方向）、学科教学（体育方向）、学科课程与教学论（体育方向）","小学教师资格证及以上","体育、体育与健康、小学全科","无","否","洱源县乔后文开中心完小1人、洱源县西山中心完小1人，按综合成绩由高到低进行选岗。"]
["洱源县","专业技术人员","体育","小学","从事小学体育教学工作",2,"女","本科及以上","学士学位","体育教育、 体育教育学、社会体育、 社会体育指导、社会体育指导与管理、 体育、体育管理、 体育教育训练学、体育学、 运动科学、 体育运动训练、 运动训练、体育与健康、小学体育教学、体育教学、师范教育（体育方向）、课程与教学论（体育方向）、学科教学（体育方向）、学科课程与教学论（体育方向）","小学教师资格证及以上","体育、体育与健康、小学全科","无","否","洱源县炼铁纸厂中心完小1人、洱源县西山建设中心完小1人，按综合成绩由高到低进行选岗。"]
["洱源县","专业技术人员","音乐","小学","从事小学音乐教学工作",1,"男","本科及以上","学士学位","音乐、艺术教育、 音乐教育 、 音乐表演、 音乐学 、 音乐与舞蹈学、 舞蹈教育、 舞蹈表演、 音乐舞蹈教育、 舞蹈学 、 音乐与舞蹈、中国乐器演奏、 键盘乐器演奏、演唱、课程与教学论、 学科教学、 学科课程与教学论、 师范教育（音乐方向）","小学教师资格证及以上","音乐、小学全科","无","否","洱源县乔后文开中心完小"]
["洱源县","专业技术人员","音乐","小学","从事小学音乐教学工作",1,"女","本科及以上","学士学位","音乐、艺术教育、 音乐教育 、 音乐表演、 音乐学 、 音乐与舞蹈学、 舞蹈教育、 舞蹈表演、 音乐舞蹈教育、 舞蹈学 、 音乐与舞蹈、中国乐器演奏、 键盘乐器演奏、演唱、课程与教学论、 学科教学、 学科课程与教学论、 师范教育（音乐方向）","小学教师资格证及以上","音乐、小学全科","无","否","洱源县炼铁翠屏中心完小"]
["洱源县","专业技术人员","美术","小学","从事小学美术教学工作",1,"男","本科及以上","学士学位","美术教育、美术教育学、 版画 、 壁画 、 美术 、 美术绘画 、美术学、油画 、 中国画、 中国画与书法、 绘画 、 绘画教育、 书法、 书法学、书法教育、工艺美术、工艺美术设计、工艺美术学、艺术设计、艺术设计学、应用艺术设计、课程与教学论（美术方向）、学科教学（美术方向）、学科课程与教学论（美术方向）、艺术教育（美术方向）、师范教育（美术方向）","小学教师资格证及以上","美术、小学全科","无","否","洱源县西山中心完小"]
["洱源县","专业技术人员","美术","小学","从事小学美术教学工作",1,"女","本科及以上","学士学位","美术教育、 版画 、 壁画 、 美术 、 美术绘画 、美术学、油画 、 中国画、 中国画与书法、 绘画 、 绘画教育、 书法、 书法学、书法教育、工艺美术、工艺美术设计、工艺美术学、艺术设计、艺术设计学、应用艺术设计、课程与教学论（美术方向）、学科教学（美术方向）、学科课程与教学论（美术方向）、艺术教育（美术方向）、师范教育（美术方向）","小学教师资格证及以上","美术、小学全科","无","否","洱源县乔后中心完小"]
["洱源县","专业技术人员","英语","小学","从事小学英语教学工作",1,"男","本科及以上","学士学位","英语、英语语言文学、英语教育、公共英语、教育英语、实用英语、外国语言文学、外国语言学及应用语言学、一般英语应用、英汉笔译、英语笔译、英语翻译、英语和高等教育、英语教学、英语教育与翻译、英语口译、英语文学、英语应用、英语语言文学、应用英语、学科教学（英语方向）、对外英语教学、初等英语教育、商务英语、师范教育（英语方向）、课程与教学论（英语方向）、学科课程与教学论（英语方向）、小学教育、初等教育学、初等教育","小学教师资格证及以上","英语、外语、小学全科","无","否","洱源县西山立坪中心完小"]
["洱源县","专业技术人员","英语","小学","从事小学英语教学工作",1,"女","本科及以上","学士学位","英语、英语语言文学、英语教育、公共英语、教育英语、实用英语、外国语言文学、外国语言学及应用语言学、一般英语应用、英汉笔译、英语笔译、英语翻译、英语和高等教育、英语教学、英语教育与翻译、英语口译、英语文学、英语应用、英语语言文学、应用英语、学科教学（英语方向）、对外英语教学、初等英语教育、商务英语、师范教育（英语方向）、课程与教学论（英语方向）、学科课程与教学论（英语方向）、小学教育、初等教育学、初等教育","小学教师资格证及以上","英语、外语、小学全科","无","否","洱源县炼铁锦华希望小学"]
["剑川县","小学教师","音乐","小学","本学科教育教学工作",1,"不限","普通招生计划本科及以上毕业生","学士","音乐表演、舞蹈教育、舞蹈编导、音乐学、音乐教育、舞蹈学、作曲与作曲技术理论","小学教师资格证及以上","与报考岗位学科一致",null,"否"]
["剑川县","小学教师","英语","小学","本学科教育教学工作",2,"不限","普通招生计划本科及以上毕业生","学士","英语教育；翻译；教育英语；实用英语；一般英语应用；英语；英语笔译；英语翻译；英语和高等教育；英语教学；英语教育与翻译；英语口译；英语文学；英语应用；英语语言文学；应用英语","小学教师资格证及以上","与报考岗位学科一致",null,"否"]
["剑川县","小学教师","美术","小学","本学科教育教学工作",1,"不限","普通招生计划本科及以上毕业生","学士","绘画、绘画教育、美术、美术绘画、美术学、美术教育、美术师范","小学教师资格证及以上","与报考岗位学科一致",null,"否"]
["剑川县","小学教师","体育","小学","本学科教育教学工作",1,"不限","普通招生计划本科及以上毕业生","学士","体育教育；社会体育；社会体育指导；社会体育指导与管理；体育；体育保健；体育保健与康复；体育教学；体育教育训练学；体育人文社会学；体育生物科学；体育学；体育艺术表演；体育运动训练；运动训练。","小学教师资格证及以上","与报考岗位学科一致",null,"否"]
["鹤庆县","专业技术人员","音乐","初中","从事初中音乐教学",2,"不限","普通招生计划本科及以上毕业生","学士学位及以上","艺术教育（音乐、舞蹈方向）、 音乐教育、键盘乐器演奏、舞蹈表演、舞蹈教育、舞蹈学、 音乐舞蹈教育、 流行音乐、流行舞蹈、 演唱、 音乐表演、 音乐学、 音乐与舞蹈、中国乐器演奏、声乐、声乐表演、师范教育（音乐方向）、艺术硕士专业（音乐方向）、课程与教学论（音乐方向）、 学科教学（音乐方向）、 学科课程与教学论（音乐方向）。","初级中学教师资格及以上","音乐、舞蹈",null,"否","鹤庆县黄坪镇中心学校、龙开口镇朵美中心学校各1人。按综合总成绩从高到低择优选岗。"]
["鹤庆县","专业技术人员","体育","初中","从事初中体育教学",2,"不限","普通招生计划本科及以上毕业生","学士学位及以上","体育教育、社会体育、社会体育指导、社会体育指导与管理、体育、体育保健、体育保健与康复、体育教学、体育教育训练学、体育人文社会学、体育生物科学、体育学、体育艺术表演、体育运动训练、中小学教育体育、体育师范、运动人体科学、民族传统体育、民族传统体育学、体能训练、民族传统体育、体育足球、运动训练、篮球、排球。","初级中学教师资格及以上","体育、体育与健康",null,"否","鹤庆县辛屯镇中心学校、草海镇中心学校各1人。按综合总成绩从高到低择优选岗。"]
["鹤庆县","专业技术人员","美术","初中","从事初中美术教学",2,"不限","普通招生计划本科及以上毕业生","学士学位及以上","美术、美术学、学科教学（美术方向）、美术教育、油画、版画、中国画、中国画与书法、美术绘画、绘画、绘画教育、艺术教育、美术师范、艺师美术、中小学美术教育、中小学教育美术、书法学、书法、艺术教育（美术方向）、师范教育（美术方向）、课程与教学论（美术方向）、学科教学（美术方向）、学科课程与教学论（美术方向）。","初级中学教师资格及以上","美术",null,"否","鹤庆县六合乡中心学校、龙开口镇中江中心学校各1人。按综合总成绩从高到低择优选岗。"]
["鹤庆县","专业技术人员","音乐","小学","从事小学音乐教学",2,"不限","普通招生计划本科及以上毕业生","学士学位及以上","艺术教育（音乐、舞蹈方向）、音乐教育、键盘乐器演奏、舞蹈表演、舞蹈教育、舞蹈学、演唱、音乐表演、音乐舞蹈教育、音乐学、音乐与舞蹈、音乐与舞蹈学、中国乐器演奏、舞蹈编导、流行音乐、流行舞蹈、师范教育（音乐方向）艺术硕士专业（音乐方向）、课程与教学论（音乐方向）、学科教学（音乐方向）、学科课程与教学论（音乐方向）。","小学教师资格证及以上","音乐、舞蹈",null,"否","鹤庆县辛屯镇中心学校、草海镇中心学校各1人。按综合总成绩从高到低择优选岗。"]
["鹤庆县","专业技术人员","体育","小学","从事小学体育教学",2,"不限","普通招生计划本科及以上毕业生","学士学位及以上","体育教育、课程与教学论、 学科教学、社会体育、社会体育指导、社会体育指导与管理、体育、小学体育、小学体育教育、体育教学、体育教育训练学、体育人文社会学、体育生物科学、体育学、体育艺术表演、体育运动训练、体育足球、运动训练、篮球、排球、民族传统体育学、体能训练、民族传统体育。 ","小学教师资格证及以上","体育、体育与健康",null,"否","鹤庆县辛屯镇中心学校、草海镇中心学校各1人。按综合总成绩从高到低择优选岗。"]
["鹤庆县","专业技术人员","美术","小学","从事小学美术教学",1,"不限","普通招生计划本科及以上毕业生","学士学位及以上","美术、美术学、学科教学（美术方向）、美术教育、油画、版画、中国画、中国画与书法、美术绘画、绘画、绘画教育、艺术教育、美术师范、艺师美术、中小学美术教育、中小学教育美术、书法学、书法、艺术教育（美术方向）、师范教育（美术方向）、课程与教学论（美术方向）、学科教学（美术方向）、学科课程与教学论（美术方向）。","小学教师资格证及以上","美术",null,"否","鹤庆县金墩乡中心学校1人。"]
["鹤庆县","专业技术人员","小学语文","小学","从事小学语文教学",3,"男","普通招生计划本科及以上毕业生","学士学位及以上","语言学及应用语言学、中国古典文献学、中国古代文学、中国现当代文学、文学阅读与文学教育、语文教育、汉语、汉语言、汉语言文学、汉语言文学教育、汉语言文学与文化传播、汉语言文字学、汉语语言文学、文学、文学阅读与文学教育、语言学、中国文学、中国语言文化、中国语言文学、中文、文史教育（语文方向）、人文教育（语文方向）、课程与教学论（语文方向）、师范教育（语文方向）、学科教学、学科教学（语文方向）、学科课程与教学论（语文方向）、小学教育、小学教育文科、小学语文教育、普通师范、小学语文、文科、初等教育、初等教育文科、师范教育、综合文科、综合文科教育、汉语国际教育、对外汉语、华文教育、中国语言与文化、中文教育、师范教育（语文方向）。","小学教师资格证及以上","语文",null,"否","鹤庆县松桂镇中心学校、西邑镇中心学校、黄坪镇中心学校各1人。按综合总成绩从高到低择优选岗。"]
["鹤庆县","专业技术人员","小学语文","小学","从事小学语文教学（B类）",3,"女","普通招生计划本科及以上毕业生","学士学位及以上","语言学及应用语言学、中国古典文献学、中国古代文学、中国现当代文学、文学阅读与文学教育、语文教育、汉语、汉语言、汉语言文学、汉语言文学教育、汉语言文学与文化传播、汉语言文字学、汉语语言文学、文学、文学阅读与文学教育、语言学、中国文学、中国语言文化、中国语言文学、中文、文史教育（语文方向）、人文教育（语文方向）、课程与教学论（语文方向）、师范教育（语文方向）、学科教学、学科教学（语文方向）、学科课程与教学论（语文方向）、小学教育、小学教育文科、小学语文教育、普通师范、小学语文、文科、初等教育、初等教育文科、师范教育、综合文科、综合文科教育、汉语国际教育、对外汉语、华文教育、中国语言与文化、中文教育、师范教育（语文方向）。","小学教师资格证及以上","语文",null,"否","鹤庆县松桂镇中心学校、西邑镇中心学校、黄坪镇中心学校各1人。按综合总成绩从高到低择优选岗。"]
["鹤庆县","专业技术人员","小学数学","小学","从事小学数学教学（A类）",3,"男","普通招生计划本科及以上毕业生","学士学位及以上","数学教育、基础数学、计算数学、数学、应用数学、数理基础科学、数学基础科学、数学与应用数学、课程与教学论、学科教学、学科课程与教学论、数理基地班、信息与计算科学、小学教育、小学教育理科、数理基地班、普师、普通师范、小学数学教育、小学数学、理科、初等教育、初等教育理科、综合理科、综合理科教育、师范教育（数学方向）、概率论与数理统计、数学与信息科学、学科教育（数学方向）、科学与技术教育（数学方向）、课程与教学论（数学方向）、学科教学（数学方向）、数理基础科学（数学方向）。","小学教师资格证及以上","数学",null,"否","鹤庆县六合乡中心学校、龙开口镇朵美中心学校、龙开口镇中江中心学校各1人。按综合总成绩从高到低择优选岗。"]
["鹤庆县","专业技术人员","小学数学","小学","从事小学数学教学（B类）",3,"女","普通招生计划本科及以上毕业生","学士学位及以上","数学教育、基础数学、计算数学、数学、应用数学、数理基础科学、数学基础科学、数学与应用数学、课程与教学论、学科教学、学科课程与教学论、数理基地班、信息与计算科学、小学教育、小学教育理科、数理基地班、普师、普通师范、小学数学教育、小学数学、理科、初等教育、初等教育理科、综合理科、综合理科教育、师范教育（数学方向）、概率论与数理统计、数学与信息科学、学科教育（数学方向）、科学与技术教育（数学方向）、课程与教学论（数学方向）、学科教学（数学方向）、数理基础科学（数学方向）。","小学教师资格证及以上","数学",null,"否","鹤庆县六合乡中心学校、龙开口镇朵美中心学校、龙开口镇中江中心学校各1人。按综合总成绩从高到低择优选岗。"]
["鹤庆县","专业技术人员","小学英语","小学","从事小学英语教学",7,"不限","普通招生计划本科及以上毕业生","学士学位及以上","小学教育（英语方向）、公共英语、英语教育、翻译、教育英语、实用英语、一般英语应用、英语、英语笔译、英语翻译、英语和高等教育、英语教学、英语教育与翻译、英语口译、英语文学、英语应用、英语语言文学、应用英语、 课程与教学论（英语方向）、学科教学（英语方向）、学科课程与教学论（英语方向）、外国语言学及应用语言学、外国语言学（英语方向）、外国语言文学（英语方向）。","小学教师资格证及以上","英语",null,"否","鹤庆县松桂镇中心学校、西邑镇中心学校、六合乡中心学校、龙开口镇朵美中心学校、龙开口镇中江中心学校各1人，黄坪镇中心学校2人。按综合总成绩从高到低择优选岗。"]